Cogmind - Beta 16 @@@ ROGUE MODE // 2025.11.20 @ 08:27:54 Player: Lazz Result: Destroyed by G-50 Soldier with Heavy Laser Performance ------------- Evolutions (4) 2000 Regions Visited (6) 1200 Robots Destroyed (61) 305 Value Destroyed (1830) 1830 Prototype IDs (16) 320 Alien Tech Used (0) 0 Bonus (350) 350 TOTAL SCORE: 6005 Bonus ------- Follower Combat Kills 50 Registered with UFD 300 Cogmind --------- Core Integrity 0/850 Matter 248/300 Energy 150/150 System Corruption 11% Temperature Hot (234) Movement Walking (190) Ox1 Location -6/Factory Parts ------- > --- POWER (1) -------- Light Angular Momentum Engine > --- PROPULSION (4) --- Carbon-fiber Leg Carbon-fiber Leg > --- UTILITY (6) ------ Large Storage Unit Improved Signal Interpreter Targeting Computer Targeting Computer Targeting Computer > --- WEAPON (4) ------- Heavy Laser Heavy Laser Rocket Launcher Companion Sword (fused) > --- INVENTORY (15) --- Advanced Treads Authchip [Power] Peak State ------------ > --- POWER ------------ Angular Momentum Engine > --- PROPULSION ------- Advanced Treads Advanced Treads Advanced Treads > --- UTILITY ---------- Heat Sink Advanced Heat Sink Large Storage Unit Improved Signal Interpreter Hardened Light Armor Plating A0-MCA's Component Scanner > --- WEAPON ----------- Beam Rifle Heavy Laser Ion Burst Cannon Heavy Flak Cannon > --- INVENTORY -------- Light Angular Momentum Engine Advanced Treads Targeting Computer Targeting Computer Targeting Computer Authchip [Power] Ion Burst Cannon Rocket Launcher Rocket Launcher Companion Sword [Rating: 55] Favorites ----------- Power Ion Engine Engine Ion Engine Propulsion Advanced Treads Treads Advanced Treads Leg Aluminum Leg Wheel Armored Wheel Utility Large Storage Unit Device Heat Sink Storage Large Storage Unit Processor Improved Signal Interpreter Protection Medium Armor Plating Weapon Beam Rifle Energy Gun Beam Rifle Energy Cannon Ion Burst Cannon Ballistic Gun Light Assault Rifle Ballistic Cannon Heavy Flak Cannon Launcher Rocket Launcher Slashing Weapon Companion Sword Build | -11 -10 -9 -9 -9 -9 -6 ------- Run | Yrd Mat Mat Sto Rec Scr Fac Slots Evolved 8 | . . 2 . . . 6 Power . | . . . . . . . Propulsion 2 | . . . . . . 2 Utility 4 | . . 2 . . . 2 Weapon 2 | . . . . . . 2 Parts Attached 63 | 5 7 11 8 . 3 29 Power 7 | 1 . 1 1 . . 4 Engine 7 | 1 . 1 1 . . 4 Core . | . . . . . . . Reactor . | . . . . . . . Propulsion 15 | 2 2 2 2 . . 7 Treads 7 | 2 . . 2 . . 3 Leg 6 | . 2 . . . . 4 Wheel 2 | . . 2 . . . . Hover . | . . . . . . . Flight . | . . . . . . . Utility 22 | . 2 6 3 . 3 8 Device 7 | . 1 4 1 . . 1 Storage 3 | . 1 . 1 . 1 . Processor 7 | . . 1 . . 2 4 Hackware . | . . . . . . . Protection 5 | . . 1 1 . . 3 Artifact . | . . . . . . . Weapon 19 | 2 3 2 2 . . 10 Energy Gun 9 | . 3 1 2 . . 3 Energy Cannon 3 | . . . . . . 3 Ballistic Gun 2 | 2 . . . . . . Ballistic Cannon 1 | . . . . . . 1 Launcher 3 | . . 1 . . . 2 Special Weapon . | . . . . . . . Impact Weapon . | . . . . . . . Slashing Weapon 1 | . . . . . . 1 Piercing Weapon . | . . . . . . . Special Melee Weapon . | . . . . . . . Unidentified Prototypes . | . . . . . . . Parts Lost 35 | . 1 6 3 1 . 24 Power 5 | . . 1 . . . 4 Propulsion 9 | . 1 . 1 . . 7 Utility 10 | . . 4 . 1 . 5 Weapon 11 | . . 1 2 . . 8 Highest Loss Streak 15 | . 1 5 1 1 . 15 To Critical Strikes . | . . . . . . . Average Backups 11 | 3 5 5 10 14 14 8 Power . | . 1 . . 1 1 . Propulsion 3 | 1 1 2 3 4 4 1 Utility 4 | 1 1 1 3 5 6 3 Weapon 2 | . 1 2 2 3 3 2 Tool/Special . | . . . . . . . Unused Backups 9 | . . 4 . 1 2 2 Power 1 | . . 1 . . . . Propulsion 4 | . . 2 . 1 . 1 Utility 2 | . . . . . 1 1 Weapon 2 | . . 1 . . 1 . Tool/Special . | . . . . . . . Average Slot Usage (%) 93 | . 93 95 90 100 100 72 Engine 9 | . 14 9 8 11 11 3 Treads 18 | . 23 3 7 22 22 14 Wheel 2 | . . 15 11 . . . Device 11 | . 12 19 11 11 11 7 Storage 11 | . 12 11 19 11 11 6 Processor 11 | . . 4 11 11 15 12 Protection 5 | . . 6 1 11 6 5 Energy Gun 18 | . 10 21 19 22 22 10 Ballistic Gun 2 | . 16 . . . . . Peak Build Rating 55 | 5 10 16 18 18 27 55 Average Rating 20 | 3 7 13 13 17 22 37 On Entrance 12 | . 5 9 10 18 18 27 Avg Prop Armor Cover (%) 7 | . 8 8 . . . 6 Naked Turns . | . . . . . . . Heaviest Build 69 | 7 17 20 39 39 39 69 Greatest Support 86 | 40 40 24 44 44 44 86 Greatest Overweight (x) 12 | . 1 6 3 . . 12 Average Overweight (x) . | . . . 1 . . 1 Largest Inventory Capacity 15 | 5 8 8 15 15 15 15 Average Capacity 13 | 5 7 8 14 15 15 15 Most Carried 15 | 5 8 8 15 15 15 13 Average Carried 11 | 3 5 5 10 14 14 8 Final Capacity 15 | 5 8 8 15 15 15 15 Final Carried 15 | 5 6 6 14 15 14 2 Class Distribution -------------------- 89% | Mutant 6% | Scavenger-Tank 3% | Tank Dominant Class ---------------- Mutant | -10/Materials Mutant | -9/Materials Mutant | -9/Storage Mutant | -9/Recycling Mutant | -9/Scraptown Scavenger-Tank | -6/Factory Resources | -11 -10 -9 -9 -9 -9 -6 ----------- Run | Yrd Mat Mat Sto Rec Scr Fac Matter Collected 1080 | 260 86 108 120 25 . 481 Remotely . | . . . . . . . Salvage Created 2050 | 112 219 314 533 50 . 822 Parts 116 | 9 23 18 28 4 . 34 Haulers Intercepted 1 | . . . 1 . . . Recyclers Shooed 1 | . . . 1 . . . Parts Field Recycled . | . . . . . . . Retrieved Matter . | . . . . . . . Parts Self-Destructed . | . . . . . . . Prevented . | . . . . . . . Parts Restored . | . . . . . . . Kills | -11 -10 -9 -9 -9 -9 -6 ------- Run | Yrd Mat Mat Sto Rec Scr Fac Combat Hostiles Destroyed 49 | . 9 11 8 1 . 20 Melee 1 | . . . . . . 1 Guns 28 | . 9 4 8 1 . 6 Cannons 6 | . . . . . . 6 AOE 13 | . . 6 . . . 7 Classes Destroyed 11 | 2 3 1 1 . . 4 Builder 1 | . . . . . . 1 Tunneler 2 | 2 . . . . . . Hauler 1 | . . . 1 . . . Recycler 2 | 1 . . 1 . . . Watcher 6 | . 2 2 2 . . . Swarmer 19 | . 6 7 . . . 6 Grunt 18 | . 3 . 5 . . 10 Duelist 1 | . . . . . . 1 Sentry 8 | . . 4 3 1 . . Specialist 2 | . . . . . . 2 Programmer 1 | . . . . . . 1 Best Kill Streak 9 | 3 3 7 3 1 . 9 Combat Bots Only 9 | . 3 7 3 1 . 9 Max Kills in Single Turn 4 | 1 2 4 1 1 . 2 Gunslinging 1 | . 1 . . . . . Exploded 4 | . . 4 . . . 2 Melee 1 | . . . . . . 1 Uniques/NPCs Destroyed . | . . . . . . . Combat | -11 -10 -9 -9 -9 -9 -6 -------- Run | Yrd Mat Mat Sto Rec Scr Fac Hostile Shots Fired 398 | . 69 57 48 2 . 222 Missed 105 | . 16 17 13 1 . 58 Hits 293 | . 53 40 35 1 . 164 Melee 3 | . . . . . . 3 Projectile 290 | . 53 40 35 1 . 161 Critical Strikes 13 | . . 1 1 . . 11 Damage Taken 4902 | . 475 522 504 14 . 3387 Core 1141 | . 90 65 119 . . 867 Absorbed by Shields . | . . . . . . . Redirected to Shielding 16 | . . 16 . . . . Core Remaining (%) 72 | 100 64 . . . 54 . Volleys Fired 146 | 5 34 25 44 1 . 37 Largest 4 | 2 2 2 2 2 . 4 Hottest 303 | 40 112 112 112 112 . 303 Shots Fired 296 | 10 62 41 74 3 . 106 Gun 244 | 10 62 39 74 3 . 56 Cannon 42 | . . . . . . 42 Launcher 10 | . . 2 . . . 8 Special . | . . . . . . . Kinetic 62 | 10 26 . . . . 26 Thermal 224 | . 36 39 74 3 . 72 Explosive 10 | . . 2 . . . 8 Electromagnetic . | . . . . . . . Robot Hit Streak 25 | 3 7 19 25 3 . 10 Robot Miss Streak 5 | 1 5 3 2 1 . 4 Penetration Max . | . . . . . . . Secondary Targets 2 | . 1 . 1 . . . Max Gunslinging Chain 1 | . 1 . 1 . . . Shots Hit Robots 203 | 6 32 33 51 2 . 79 Core Hits 132 | 4 17 17 22 2 . 70 Critical Kills 2 | 2 . . . . . . Critical Parts Destroyed . | . . . . . . . Critical Strikes 13 | 2 1 2 4 . . 4 Burn 11 | . 1 2 4 . . 4 Destroy 2 | 2 . . . . . . Melee Attacks 4 | . . . . . . 4 Impact . | . . . . . . . Slashing 4 | . . . . . . 4 Piercing . | . . . . . . . Sneak Attacks 1 | . . . . . . 1 Combat Hostiles . | . . . . . . . Follow-up Attacks . | . . . . . . . Damage Inflicted 4227 | 56 388 705 770 31 . 2277 Guns 2358 | 56 384 481 766 29 . 642 Cannons 819 | . . . . . . 819 Explosions 902 | . . 207 . . . 695 Melee 121 | . . . . . . 121 Ramming 27 | . 4 17 4 2 . . Kinetic 591 | 56 139 . . . . 396 Thermal 2586 | . 245 481 766 29 . 1065 Explosive 902 | . . 207 . . . 695 Electromagnetic . | . . . . . . . Impact . | . . . . . . . Slashing 121 | . . . . . . 121 Piercing . | . . . . . . . Highest Corruption 11 | . . 1 1 1 . 11 Average Corruption 2 | . . 1 1 1 . 9 Corruption Purged . | . . . . . . . Corruption Blocked . | . . . . . . . Effects 16 | . . . 5 5 . 6 Message Errors 4 | . . . 1 1 . 2 Matter Fused 2 | . . . . 2 . . Heat Flow Errors 1 | . . . . 1 . . Energy Discharges 3 | . . . 3 . . . Parts Fused 2 | . . . 1 . . 1 Data Loss (minor) 2 | . . . . . . 2 Misfires 2 | . . . . 1 . 1 Overload Shots . | . . . . . . . Overflow Damage 4 | . . . . . . 4 Projectiles 3 | . . . . . . 3 Explosions 1 | . . . . . . 1 Melee . | . . . . . . . Knockbacks 25 | . . . . . . 25 Impact . | . . . . . . . Kinetic 20 | . . . . . . 20 Secondary 5 | . . . . . . 5 Self-Inflicted Damage 56 | . . 8 . . . 48 Shots 2 | . . . . . . 2 Rammed 7 | . 2 2 1 1 . 1 Targets Rammed 7 | . 2 2 1 1 . 1 Kicked . | . . . . . . . Crushed . | . . . . . . . Highest Temperature 805 | . 350 282 168 132 . 805 Average Temperature 122 | . 130 78 50 53 . 205 Received Heat Transfer 1104 | . 78 180 189 9 . 648 Effects 18 | . 4 . . . . 14 Shutdowns 3 | . . . . . . 3 Energy Bleed 2 | . 1 . . . . 1 Interference 6 | . 3 . . . . 3 Matter Decay 1 | . . . . . . 1 Damage (minor) 1 | . . . . . . 1 Damage (major) 4 | . . . . . . 4 Damage (core) 1 | . . . . . . 1 Siege Activations . | . . . . . . . Martial Activations . | . . . . . . . Shielding Activations . | . . . . . . . Robots Disrupted 1 | . . . . . . 1 Combat Hostiles 1 | . . . . . . 1 Robots Corrupted . | . . . . . . . Combat Hostiles . | . . . . . . . Parts Fried . | . . . . . . . Impact Corruptions . | . . . . . . . Robots Melted 1 | . . 1 . . . . Combat Hostiles 1 | . . 1 . . . . Parts Melted 16 | . 2 9 4 . . 1 Heat Transferred 6692 | . 703 1332 2257 74 . 2326 Parts Sabotaged . | . . . . . . . Parts Stolen . | . . . . . . . Parts Stripped . | . . . . . . . Power Chain Reactions . | . . . . . . . Alert | -11 -10 -9 -9 -9 -9 -6 ------- Run | Yrd Mat Mat Sto Rec Scr Fac Maximum Alert Level . | . . . . . . . Low Security (%) 100 | 100 100 100 100 100 . 100 Level 1 . | . . . . . . . Level 2 . | . . . . . . . Level 3 . | . . . . . . . Level 4 . | . . . . . . . Level 5 . | . . . . . . . High Security . | . . . . . . . Max Security . | . . . . . . . Peak Influence 190 | 15 117 190 173 46 . 174 Initial 76 | . . 38 76 46 . . Average 59 | 2 41 63 126 5 . 81 Influence Increases 1541 | 15 243 347 297 43 . 596 Destroy 0b10 Robot/C 1000 | . 180 220 160 20 . 420 Destroy 0b10 Robot/NC 65 | 15 10 10 20 . . 10 Destroy Leader 254 | . 44 64 56 . . 90 Allied During Kill 2 | . . . . . . 2 Successful Hack 73 | . 8 . 14 23 . 28 Disable Machine 30 | . . 15 . . . 15 Destroy Structure 42 | . 1 8 2 . . 31 Lose Combat Pursuer 75 | . . 30 45 . . . Influence Decreases 1498 | 15 151 259 356 164 . 553 Entered New Map 233 | . . 54 104 75 . . Time Decay 899 | 15 141 145 222 83 . 293 Lost Part 346 | . 10 60 30 6 . 240 Lost Ally 20 | . . . . . . 20 Squads Dispatched 12 | . 2 1 2 . . 7 Investigation 4 | . 1 . 1 . . 2 Extermination 1 | . . . . . . 1 Reinforcement 3 | . 1 1 . . . 1 Assault . | . . . . . . . Garrison 4 | . . . 1 . . 3 Intercept . | . . . . . . . Searches Triggered . | . . . . . . . Construction Impeded . | . . . . . . . Haulers Reinforced . | . . . . . . . Active Scanning Responses . | . . . . . . . Cargo Convoy Interrupts . | . . . . . . . Stealth | -11 -10 -9 -9 -9 -9 -6 --------- Run | Yrd Mat Mat Sto Rec Scr Fac Distress Signals 3 | . . 2 1 . . . Communications Jammed . | . . . . . . . Distress Signals . | . . . . . . . Times Spotted 62 | . 12 17 10 1 . 22 Peak Tracking Total 7 | . 3 7 4 . . 5 Tactical Retreats 2 | . . 1 1 . . . Traps | -11 -10 -9 -9 -9 -9 -6 ------- Run | Yrd Mat Mat Sto Rec Scr Fac Traps Triggered 4 | . 2 1 1 . . . Indirectly . | . . . . . . . Trap Hack Attempts . | . . . . . . . Triggered . | . . . . . . . Disarmed . | . . . . . . . Reprogrammed . | . . . . . . . Reused . | . . . . . . . Traps Extracted . | . . . . . . . Installed . | . . . . . . . Triggered . | . . . . . . . Machines | -11 -10 -9 -9 -9 -9 -6 ---------- Run | Yrd Mat Mat Sto Rec Scr Fac Machines Disabled 2 | . . 1 . . . 1 Max in Single Turn 1 | . . 1 . . . 1 Machines Repaired . | . . . . . . . Machines Dismantled . | . . . . . . . Machines Sabotaged . | . . . . . . . Overloaded Fab Kills . | . . . . . . . Hacking | -11 -10 -9 -9 -9 -9 -6 --------- Run | Yrd Mat Mat Sto Rec Scr Fac Machines Accessed 18 | . 2 . 3 2 8 3 Terminals 9 | . 2 . 3 2 . 2 Fabricators . | . . . . . . . Repair Stations . | . . . . . . . Recycling Units 1 | . . . . . . 1 Scanalyzers . | . . . . . . . Garrison Access . | . . . . . . . Total Hacks 58 | . 5 . 6 4 37 6 Successful 46 | . 1 . 2 2 37 4 Failed 12 | . 4 . 4 2 . 2 Catastrophic 3 | . 1 . . 1 . 1 Database Lockouts . | . . . . . . . Manual 10 | . 1 . 4 3 . 2 Terminals 20 | . 5 . 6 4 . 5 Fabricators . | . . . . . . . Repair Stations . | . . . . . . . Recycling Units 1 | . . . . . . 1 Scanalyzers . | . . . . . . . Garrison Access . | . . . . . . . Terminal Hacks 44 | . 1 . 2 2 37 2 Record 30 | . . . . . 29 1 Part Schematic 1 | . . . . 1 . . Robot Analysis 6 | . . . . . 6 . Open Door 2 | . . . 1 . 1 . Level Access Points 1 | . 1 . . . . . Branch Access Points 1 | . . . 1 . . . Terminal Index 1 | . . . . . . 1 Unreport Threat 1 | . . . . 1 . . Proto ID Catalog 1 | . . . . . 1 . Fabricator Hacks . | . . . . . . . Repair Station Hacks . | . . . . . . . Recycling Unit Hacks . | . . . . . . . Scanalyzer . | . . . . . . . Garrison Access Hacks . | . . . . . . . Unauthorized Hacks 2 | . . . . . . 2 Terminals 1 | . . . . . . 1 Botnet 1 | . . . . . . 1 Fabricators . | . . . . . . . Repair Stations . | . . . . . . . Recycling Units 1 | . . . . . . 1 Fedlink 1 | . . . . . . 1 Scanalyzers . | . . . . . . . Garrison Access . | . . . . . . . Data Cores Recovered . | . . . . . . . Used . | . . . . . . . Hacking Detections 8 | . 2 . 2 2 . 2 Full Trace Events 3 | . . . 1 1 . 1 Feedback Events . | . . . . . . . Feedback Blocked . | . . . . . . . Robot Schematics Acquired . | . . . . . . . Robots Built . | . . . . . . . Authchips . | . . . . . . . Time . | . . . . . . . Total Robot Build Rating . | . . . . . . . Part Schematics Acquired 1 | . . . . 1 . . Parts Built . | . . . . . . . Authchips . | . . . . . . . Time . | . . . . . . . Total Part Build Rating . | . . . . . . . Part Studies Acquired . | . . . . . . . Parts Repaired . | . . . . . . . Time . | . . . . . . . Parts Recycled . | . . . . . . . Recycled Matter . | . . . . . . . Retrieved Matter . | . . . . . . . Retrieved Components . | . . . . . . . Parts Scanalyzed . | . . . . . . . Part Schematics Acquired . | . . . . . . . Parts Damaged . | . . . . . . . Bothacking | -11 -10 -9 -9 -9 -9 -6 ------------ Run | Yrd Mat Mat Sto Rec Scr Fac Used RIF Installer . | . . . . . . . Robots Hacked . | . . . . . . . Non-combat . | . . . . . . . Combat . | . . . . . . . Robot Hacks Applied . | . . . . . . . Relay Couplers Released . | . . . . . . . Fabnet Peak Effective % . | . . . . . . . Robots Rewired 1 | . . . . . . 1 Allies Hacked . | . . . . . . . Hacks Repelled . | . . . . . . . Allies | -11 -10 -9 -9 -9 -9 -6 -------- Run | Yrd Mat Mat Sto Rec Scr Fac Total Allies 1 | . . . . . . 1 Largest Group 1 | . . . . . . 1 Highest-Rated Group 90 | . . . . . . 90 Highest-Rated Ally 90 | . . . . . . 90 Total Orders . | . . . . . . . Ally Attacks 4 | . . . . . . 4 Total Damage 163 | . . . . . . 163 Kills 2 | . . . . . . 2 Allies Corrupted . | . . . . . . . Allies Melted . | . . . . . . . Intel | -11 -10 -9 -9 -9 -9 -6 ------- Run | Yrd Mat Mat Sto Rec Scr Fac Active Infowar (turns) 804 | . 492 312 . . . . Seismic 804 | . 492 312 . . . . Robot Analysis Total 6 | . . . . . 6 . Derelict Logs Recovered . | . . . . . . . Drone Launches . | . . . . . . . Drone Recoveries . | . . . . . . . Exploration | -11 -10 -9 -9 -9 -9 -6 ------------- Run | Yrd Mat Mat Sto Rec Scr Fac Turns Passed 4568 | 123 558 347 465 591 1788 696 Spaces Moved 2546 | 60 208 220 219 403 1227 209 Core 30 | 6 . 1 . . . 23 Treads 2147 | 54 167 56 76 403 1227 164 Legs 63 | . 41 . . . . 22 Wheels 306 | . . 163 143 . . . Hover . | . . . . . . . Flight . | . . . . . . . Fastest Speed 50 | 50 120 90 90 145 145 145 Average Speed 146 | 149 157 109 124 145 145 204 Slowest Speed 650 | 160 190 350 145 145 145 650 Overloaded Moves . | . . . . . . . Propulsion Burnouts . | . . . . . . . Robots Hopped . | . . . . . . . Potential Cave-ins . | . . . . . . . Cave-ins Triggered . | . . . . . . . Exploration Rate (%) 37 | 5 42 25 38 77 67 5 Regions Visited 6 Branch Regions 3 Pre-discovered Areas . | . . . . . . . Known Exits Taken 5 | . 1 1 1 1 1 . Unknown Exits Taken 1 | 1 . . . . . . Scrap Searched 3 | . . . . . 3 . Spaces Dug . | . . . . . . . Terrain Destroyed 36 | . . 7 . . . 29 Melee . | . . . . . . . Projectile 1 | . . . . . . 1 AOE 35 | . . 7 . . . 28 Terrain Rammed . | . . . . . . . Walls Destroyed . | . . . . . . . Machines Disabled . | . . . . . . . Actions | -11 -10 -9 -9 -9 -9 -6 --------- Run | Yrd Mat Mat Sto Rec Scr Fac Total 3118 | 85 381 288 337 409 1238 380 Wait 248 | 8 120 9 45 . 1 65 Move 2540 | 59 207 219 218 402 1226 209 Hop . | . . . . . . . Pick Up 67 | 8 7 13 17 3 2 17 Fast Attach 5 | 2 2 . . . 1 . Attach 55 | 3 6 8 9 1 . 28 Detach 1 | . . . . . 1 . Swap 11 | . 1 4 1 . 2 3 Drop 18 | . 2 8 2 1 5 . Fire 146 | 5 34 25 44 1 . 37 Melee 4 | . . . . . . 4 Ram 3 | . . 2 . . . 1 Kick . | . . . . . . . Crush 4 | . 2 . 1 1 . . Escape Stasis . | . . . . . . . Rewire 16 | . . . . . . 16 Trap . | . . . . . . . Miscellaneous . | . . . . . . . Route ------- -11/Scrapyard -10/Materials (discovered 3 exits: *Mat x3) -9/Materials -9/Storage -9/Recycling (discovered 2 exits: [*Fac] / *Scr) -9/Scraptown -6/Factory History --------- Turn | Location | Event 4 | -11/Scrapyard | Discovered new exit (range 15) 124 | -11/Scrapyard | Entered Materials 303 | -10/Materials | Build established: Mutant 624 | -10/Materials | Identified exit to Materials 682 | -10/Materials | Entered another Materials area 682 | -9/Materials | Evolved 2 slots: Utility x2 950 | -9/Materials | Destroyed 7 combat bots 1021 | -9/Materials | Discovered new exit (range 10) 1029 | -9/Materials | Identified exit to Storage 1029 | -9/Materials | Entered Storage 1043 | -9/Storage | Identified exit to Recycling 1044 | -9/Storage | Lost 5 parts (1p3u1w) 1158 | -9/Storage | Garrison activated, responded to threat 1490 | -9/Storage | Used back door to open Recycling access 1494 | -9/Storage | Entered Recycling 1775 | -9/Recycling | Discovered new exit (range 14) 2035 | -9/Recycling | Scanned before Scraplab entrance 2056 | -9/Recycling | Entered Scraplab 2082 | -9/Recycling | Discovered new exit (range 3) 2084 | -9/Recycling | Identified exit to Scraptown 2085 | -9/Recycling | Entered Scraptown 2085 | -9/Scraptown | System corruption cleaned by C-Scrubber 2381 | -9/Scraptown | Heard Great Nut preacher, LISTEN AND RECITE! 2400 | -9/Scraptown | Visited IN-MT5's Study 2447 | -9/Scraptown | Visited Red Mages 2503 | -9/Scraptown | Visited Shadow of the Wyrm 2525 | -9/Scraptown | Visited Fellowship of the Rings 2582 | -9/Scraptown | Visited UFD Registry 2642 | -9/Scraptown | Visited Cyclists 2712 | -9/Scraptown | Registered with UFD as "Plasmamaster" 2765 | -9/Scraptown | Entered Cyclist Reading Room 2870 | -9/Scraptown | Visited Observation Area 2930 | -9/Scraptown | Visited Junk Repository 2983 | -9/Scraptown | Visited Science Testing Area 3019 | -9/Scraptown | Visited Abandonware Association 3075 | -9/Scraptown | Visited A0-MCA Data Center 3102 | -9/Scraptown | Given a B rating by A0-MCA 3108 | -9/Scraptown | Found A0-MCA's Component Scanner 3150 | -9/Scraptown | Visited Scrap Suit Storage 3191 | -9/Scraptown | Visited Science Guys 3530 | -9/Scraptown | Learned abandonware demo "KABOOM.EXE" 3628 | -9/Scraptown | Visited Sword Containment 3643 | -9/Scraptown | Found Companion Sword 3679 | -9/Scraptown | Visited Curators Association 3708 | -9/Scraptown | Visited Analyses Database 3862 | -9/Scraptown | Discovered new exit (range 5) 3872 | -9/Scraptown | Identified exit to Factory 3873 | -9/Scraptown | Entered Factory 3873 | -6/Factory | Evolved 6 slots: Propulsion x2, Utility x2, Weapon x2 3931 | -6/Factory | Garrison activated, responded to threat 4006 | -6/Factory | Destroyed 9 combat bots 4014 | -6/Factory | Lost 3 parts (1p1n1u) 4179 | -6/Factory | Build established: Scavenger-Tank 4229 | -6/Factory | Lost 3 parts (1n1u1w) 4258 | -6/Factory | Loaded intel: 8 recycling unit locations 4377 | -6/Factory | Core integrity fell below 50% 4389 | -6/Factory | Core integrity fell below 20% 4402 | -6/Factory | System corruption reached 10% 4411 | -6/Factory | Lost 15 parts (1p5n3u6w) 4569 | -6/Factory | Destroyed by G-50 Soldier with Heavy Laser Last Messages --------------- 04480_ Acquired 37 matter. 04484_ R-10 Processor collects Carbon-fiber Leg. 04494_ K-01 Serf cleans the Matter Pump. 04496_ System corrupted: Component data lost. 04498_ K-01 Serf cleans the Matter Pump. 04512_ Acquired Carbon-fiber Leg. 04526_ Acquired Hvy. Laser. 04530_ Acquired 40 matter. 04530_ K-01 Serf cleans the Matter Pump. 04539_ Acquired 27 matter. 04544_ 7NGGKU0SA86O Map ----- +----------------------------------------------------+ | ?????????????????????????????????????????????????? | | ?????????????????????????????????????????????????? | | ?????????????????????????????????????????????????? | | ?????????????????????????????????????????????????? | | ?????????????????????????????????????????????????? | | ?????????????????????????????????????????????????? | | ?????????????????????????????????????????????????? | | ?????????????????????????????????????????????????? | | ?????????????????????????????????????????????????? | | ?????????????????????????????????????????????????? | | ?????????????????????????????????????????????????? | | ?????????????????????????########????????????????? | | ?????????????????????????# #????????????????? | | ?????????????????????????# #????????????????? | | ?????????????????????????# #????????????????? | | ?????????????????????????# """ #????????????????? | | ?????????????#+#+#???????# """ #????????????????? | | ?????????????# [#???????# """ #????????????????? | | ############## %% ####???# #????????????????? | | * =ug ??# #????????????????? | | %|*%= ### " #???#????????????? | | =% %+ Y #?? # ??????????? | | g # "" #? / ???????????? | | = = # # #????????????? | | ##+#### %* ######## ##???????????? | | ## """ ] @ ##### #???????????? | | =## " "" """ "%" ! %% #???????????? | | %## "R"" """ %"" #???????????? | | " """ % #???????????? | | # % ### #???????????? | | !+ #########???????????? | | ######% ^^ # % #????????????? | | #????# ^ % # #????????????? | | #????# ^ ; % #????????????? | | #????# #### Y" #????????????? | | #????# ^ #??# """ #????????????? | | #????#################??# !#????????????? | | ######???????????????????????########????????????? | | ?????????????????????????????????????????????????? | | | | | | | | | | | | | | | | | | | | | | | +----------------------------------------------------+ Best States ------------- Heat Dissipation 66 Energy Generation 18 Energy Capacity 300 Matter Stores 300 Matter Capacity 300 Sight Range 16 Terrain Scan Density 10 Armor Coverage 300 Propulsion Shielding 33 Evasion (%) 45 Targeting Accuracy 15 Recoil Reduction 4 Particle Charging 15 Authchip Count 1 Item Schematics ----------------- Katana | -9/Recycling | Hacked Robot Schematics ------------------ None Fabricated ------------ Nothing Repaired ---------- Nothing Studied --------- None Alien Tech Used ----------------- None Achievements -------------- Wiki Contributor Challenges ------------ None Game ------ Seed BlastAluminumReconfigurator Manual? 0 Play Time 00:37:16 Cumulative 91.4 hours Start 2025.11.19 @ 22:41:31 End 2025.11.20 @ 08:27:54 Sessions 3 Manual Loads 0 Difficulty Rogue Special Mode None Game No. 128 Rogue 128 Adventurer 0 Explorer 0 Win Type - Total 1 Types 1/0/0/0/0/0/0/0/0/0 Lore% 57 Gallery% 52 Achievement% 39 Wizard Run 0 Options --------- Layout 2 ASCII 0 Keyboard 0 Movement Mouse Keybinds 0 Fullscreen 1 Font 16/SmallcapsGlow Map View 25x24 Zoom Use 99% Tactical HUD 1 Map Filters NONE Filters NONE Steam SD RUN: 0381aade-d7b2-46e8-8e39-76cae6cba4f3